[Event "*** SCC Grand Prix: Titled Tuesday Blitz"]
[Site "Chess.com"]
[Date "2020.07.21"]
[Round "10"]
[White "bugsbunny444"]
[Black "AnthonyWirig"]
[Result "0-1"]
[WhiteElo "2586"]
[BlackElo "2710"]
[TimeControl "180+1"]
[EndTime "12:00:45 PDT"]
[Termination "AnthonyWirig won by resignation"]

1. Nf3 {[%clk 0:03:00.9]} 1... Nf6 {[%clk 0:02:54.2]} 2. c4 {[%clk 0:02:59.4]}
2... Nc6 {[%clk 0:02:53.9]} 3. d4 {[%clk 0:02:54]} 3... d6 {[%clk 0:02:51.6]} 4.
g3 {[%clk 0:02:33.5]} 4... e5 {[%clk 0:02:47]} 5. dxe5 {[%clk 0:02:33.5]} 5...
dxe5 {[%clk 0:02:38.9]} 6. Qxd8+ {[%clk 0:02:33.1]} 6... Kxd8 {[%clk 0:02:39.8]}
7. Nc3 {[%clk 0:02:27.5]} 7... Bb4 {[%clk 0:02:28.9]} 8. Bd2 {[%clk 0:02:22.2]}
8... Be6 {[%clk 0:02:00.8]} 9. b3 {[%clk 0:02:06.4]} 9... h6 {[%clk 0:01:37.1]}
10. a3 {[%clk 0:01:32]} 10... Bxc3 {[%clk 0:01:27.3]} 11. Bxc3 {[%clk
0:01:32.1]} 11... Nd7 {[%clk 0:01:23.3]} 12. O-O-O {[%clk 0:01:09.2]} 12... f6
{[%clk 0:01:13.5]} 13. Bg2 {[%clk 0:01:04.2]} 13... a5 {[%clk 0:01:08.1]} 14.
Nd2 {[%clk 0:01:03.8]} 14... Ke7 {[%clk 0:01:00.9]} 15. f4 {[%clk 0:00:55.6]}
15... Nc5 {[%clk 0:00:50.9]} 16. Kb2 {[%clk 0:00:43.9]} 16... Rhd8 {[%clk
0:00:39.9]} 17. Bxc6 {[%clk 0:00:34.2]} 17... bxc6 {[%clk 0:00:39.9]} 18. fxe5
{[%clk 0:00:34.6]} 18... f5 {[%clk 0:00:20.5]} 19. Kc2 {[%clk 0:00:24.7]} 19...
Rdb8 {[%clk 0:00:16.6]} 20. Bd4 {[%clk 0:00:20.9]} 20... Nd7 {[%clk 0:00:12.7]}
21. Rhf1 {[%clk 0:00:17]} 21... c5 {[%clk 0:00:12.8]} 22. Bc3 {[%clk 0:00:17.3]}
22... a4 {[%clk 0:00:13.5]} 23. b4 {[%clk 0:00:17.3]} 23... cxb4 {[%clk
0:00:13.3]} 24. axb4 {[%clk 0:00:11.3]} 24... Nb6 {[%clk 0:00:13.3]} 25. Rf4
{[%clk 0:00:09.2]} 25... g5 {[%clk 0:00:12.3]} 26. Rd4 {[%clk 0:00:09.4]} 26...
Rd8 {[%clk 0:00:07.8]} 27. b5 {[%clk 0:00:03]} 27... Rxd4 {[%clk 0:00:07]} 28.
Bxd4 {[%clk 0:00:03.8]} 28... Nxc4 {[%clk 0:00:07.5]} 29. Bc5+ {[%clk
0:00:03.1]} 29... Kf7 {[%clk 0:00:07.5]} 30. Nxc4 {[%clk 0:00:03.4]} 30... Bxc4
{[%clk 0:00:08.4]} 31. Rd7+ {[%clk 0:00:03.7]} 31... Ke6 {[%clk 0:00:08]} 32.
Rxc7 {[%clk 0:00:03.2]} 32... Bxb5 {[%clk 0:00:08.2]} 33. e3 {[%clk 0:00:02.7]}
33... Kxe5 {[%clk 0:00:07.8]} 34. Bd4+ {[%clk 0:00:02.5]} 34... Ke4 {[%clk
0:00:07.2]} 35. Re7+ {[%clk 0:00:02.3]} 35... Kf3 {[%clk 0:00:07.6]} 36. Re5
{[%clk 0:00:02.7]} 36... Bd7 {[%clk 0:00:07.4]} 37. Kc3 {[%clk 0:00:01.9]} 37...
a3 {[%clk 0:00:07.1]} 38. Kb4 {[%clk 0:00:02]} 38... a2 {[%clk 0:00:07.5]} 39.
Ba1 {[%clk 0:00:02.9]} 39... Kg2 {[%clk 0:00:06.8]} 40. Re7 {[%clk 0:00:02.6]}
40... Bc6 {[%clk 0:00:06.7]} 41. Rh7 {[%clk 0:00:03.2]} 41... Be4 {[%clk
0:00:06.8]} 42. Rxh6 {[%clk 0:00:03.6]} 42... g4 {[%clk 0:00:06.8]} 43. Kc3
{[%clk 0:00:02.9]} 43... Rb8 {[%clk 0:00:06.9]} 44. Rd6 {[%clk 0:00:03.2]} 44...
Rb1 {[%clk 0:00:06.4]} 45. Bb2 {[%clk 0:00:04.1]} 45... a1=Q {[%clk 0:00:06.3]}
46. Bxa1 {[%clk 0:00:04.5]} 46... Rxa1 {[%clk 0:00:07.2]} 47. Rd2+ {[%clk
0:00:05.2]} 47... Kf3 {[%clk 0:00:07.9]} 48. Kd4 {[%clk 0:00:06.1]} 48... Ra4+
{[%clk 0:00:07.5]} 49. Ke5 {[%clk 0:00:06.6]} 49... Kxe3 {[%clk 0:00:08.1]} 50.
Rb2 {[%clk 0:00:07.1]} 50... Rc4 {[%clk 0:00:08.4]} 51. Kf6 {[%clk 0:00:07.2]}
51... Rc2 {[%clk 0:00:08.6]} 52. Rxc2 {[%clk 0:00:07.1]} 52... Bxc2 {[%clk
0:00:09.5]} 53. Kg5 {[%clk 0:00:08]} 53... Kf3 {[%clk 0:00:09.8]} 54. Kh4 {[%clk
0:00:07.9]} 54... Be4 {[%clk 0:00:10.1]} 55. h3 {[%clk 0:00:07.9]} 55... Bd3
{[%clk 0:00:09.7]} 56. hxg4 {[%clk 0:00:07]} 56... fxg4 {[%clk 0:00:10.6]} 0-1

[Event "*** SCC Grand Prix: Titled Tuesday Blitz"]
[Site "Chess.com"]
[Date "2020.07.21"]
[Round "10"]
[White "Efremov_Vlad"]
[Black "dpopadic"]
[Result "0-1"]
[WhiteElo "2183"]
[BlackElo "2356"]
[TimeControl "180+1"]
[EndTime "12:00:45 PDT"]
[Termination "dpopadic won by resignation"]

1. d4 {[%clk 0:03:00.9]} 1... Nf6 {[%clk 0:02:59.3]} 2. c4 {[%clk 0:03:00.2]}
2... g6 {[%clk 0:02:59.4]} 3. Nf3 {[%clk 0:02:58.6]} 3... Bg7 {[%clk 0:02:59.9]}
4. g3 {[%clk 0:02:59.2]} 4... d6 {[%clk 0:03:00.1]} 5. Bg2 {[%clk 0:02:59.7]}
5... O-O {[%clk 0:03:00.5]} 6. O-O {[%clk 0:03:00.3]} 6... Nbd7 {[%clk
0:03:00.5]} 7. Nc3 {[%clk 0:03:00.6]} 7... e5 {[%clk 0:03:00.5]} 8. e4 {[%clk
0:03:01.3]} 8... exd4 {[%clk 0:03:00.4]} 9. Nxd4 {[%clk 0:03:01.3]} 9... Re8
{[%clk 0:03:01.1]} 10. Re1 {[%clk 0:02:58.5]} 10... a6 {[%clk 0:03:01.1]} 11. h3
{[%clk 0:02:58.1]} 11... Rb8 {[%clk 0:03:01]} 12. b3 {[%clk 0:02:51.9]} 12... c5
{[%clk 0:02:57.2]} 13. Nde2 {[%clk 0:02:47.8]} 13... b5 {[%clk 0:02:57.2]} 14.
Qxd6 {[%clk 0:01:54.3]} 14... b4 {[%clk 0:02:56.2]} 15. Nd5 {[%clk 0:01:54.1]}
15... Nxe4 {[%clk 0:02:55.2]} 16. Bxe4 {[%clk 0:01:53.7]} 16... Rxe4 {[%clk
0:02:54]} 17. Rb1 {[%clk 0:01:35]} 17... Re6 {[%clk 0:02:45.2]} 18. Qf4 {[%clk
0:01:31]} 18... Qe8 {[%clk 0:02:36]} 19. Be3 {[%clk 0:01:17.6]} 19... Re4 {[%clk
0:02:30.7]} 20. Qf3 {[%clk 0:01:16.6]} 20... Bb7 {[%clk 0:02:27.3]} 21. Red1
{[%clk 0:01:10.6]} 21... f5 {[%clk 0:02:13.1]} 22. Nef4 {[%clk 0:01:03.3]} 22...
Ne5 {[%clk 0:02:10.8]} 23. Qg2 {[%clk 0:01:03.9]} 23... Nd7 {[%clk 0:01:48]} 24.
Rd2 {[%clk 0:00:50.3]} 24... Nf6 {[%clk 0:01:40.3]} 25. Nxf6+ {[%clk 0:00:46.2]}
25... Bxf6 {[%clk 0:01:39.9]} 26. Nd5 {[%clk 0:00:46.8]} 26... Bg7 {[%clk
0:01:26.5]} 27. Rbd1 {[%clk 0:00:40.2]} 27... Qf8 {[%clk 0:01:18.9]} 28. Bf4
{[%clk 0:00:36.7]} 28... Rbe8 {[%clk 0:01:10]} 29. Kh2 {[%clk 0:00:31.1]} 29...
Bd4 {[%clk 0:01:08.7]} 30. f3 {[%clk 0:00:23]} 30... Re1 {[%clk 0:00:59.5]} 31.
Bg5 {[%clk 0:00:21.9]} 31... Qd6 {[%clk 0:00:42.8]} 32. Rxe1 {[%clk 0:00:17.9]}
32... Rxe1 {[%clk 0:00:41.8]} 33. Bf4 {[%clk 0:00:11.2]} 33... Qe6 {[%clk
0:00:39.6]} 34. Nc7 {[%clk 0:00:11]} 34... Qe7 {[%clk 0:00:26.6]} 35. Nd5 {[%clk
0:00:08.5]} 35... Qe8 {[%clk 0:00:23.6]} 36. Nc7 {[%clk 0:00:07.8]} 36... Qc6
{[%clk 0:00:15.8]} 37. Re2 {[%clk 0:00:06.9]} 37... Rxe2 {[%clk 0:00:13.7]} 38.
Qxe2 {[%clk 0:00:07.8]} 38... Kf7 {[%clk 0:00:11.7]} 39. Nd5 {[%clk 0:00:06.1]}
39... Qe6 {[%clk 0:00:10]} 40. Qxe6+ {[%clk 0:00:04.8]} 40... Kxe6 {[%clk
0:00:10]} 41. Nc7+ {[%clk 0:00:04.5]} 41... Kd7 {[%clk 0:00:09.9]} 42. Kg2
{[%clk 0:00:04.7]} 42... g5 {[%clk 0:00:07]} 43. Bxg5 {[%clk 0:00:03.4]} 43...
Kxc7 {[%clk 0:00:07]} 44. g4 {[%clk 0:00:03.6]} 44... fxg4 {[%clk 0:00:06.7]}
45. hxg4 {[%clk 0:00:04.5]} 45... Kd7 {[%clk 0:00:07]} 46. Kg3 {[%clk
0:00:05.2]} 46... Ke6 {[%clk 0:00:07]} 47. f4 {[%clk 0:00:05.7]} 47... Be4
{[%clk 0:00:06.2]} 48. Kh4 {[%clk 0:00:05.8]} 48... Bb1 {[%clk 0:00:05.7]} 49.
f5+ {[%clk 0:00:05.9]} 49... Kf7 {[%clk 0:00:04.5]} 50. Kh5 {[%clk 0:00:06.1]}
50... Bxa2 {[%clk 0:00:04.7]} 51. Kh6 {[%clk 0:00:06.3]} 51... Kg8 {[%clk
0:00:04.4]} 52. Bf4 {[%clk 0:00:05.1]} 52... Bxb3 {[%clk 0:00:04.4]} 53. g5
{[%clk 0:00:05.3]} 53... Bxc4 {[%clk 0:00:04.1]} 54. g6 {[%clk 0:00:04.4]} 54...
hxg6 {[%clk 0:00:04.3]} 55. fxg6 {[%clk 0:00:05.3]} 55... b3 {[%clk 0:00:04.4]}
0-1

[Event "*** SCC Grand Prix: Titled Tuesday Blitz"]
[Site "Chess.com"]
[Date "2020.07.21"]
[Round "10"]
[White "sasko1234"]
[Black "novocane"]
[Result "1-0"]
[WhiteElo "2388"]
[BlackElo "2265"]
[TimeControl "180+1"]
[EndTime "12:00:46 PDT"]
[Termination "sasko1234 won on time"]

1. b3 {[%clk 0:02:57.4]} 1... a5 {[%clk 0:02:56.2]} 2. Bb2 {[%clk 0:02:51]} 2...
a4 {[%clk 0:02:56.3]} 3. bxa4 {[%clk 0:02:51.1]} 3... Rxa4 {[%clk 0:02:47.3]} 4.
e3 {[%clk 0:02:50.4]} 4... Nf6 {[%clk 0:02:34.7]} 5. Nf3 {[%clk 0:02:46.2]} 5...
e6 {[%clk 0:02:27.4]} 6. Nc3 {[%clk 0:02:34.2]} 6... Ra8 {[%clk 0:02:26.3]} 7.
Bd3 {[%clk 0:02:34.1]} 7... d5 {[%clk 0:02:23.7]} 8. O-O {[%clk 0:02:27.9]} 8...
Bd6 {[%clk 0:02:21.4]} 9. e4 {[%clk 0:02:14]} 9... dxe4 {[%clk 0:01:58.8]} 10.
Nxe4 {[%clk 0:02:10]} 10... Be7 {[%clk 0:01:56.2]} 11. Qe2 {[%clk 0:02:04]}
11... Nbd7 {[%clk 0:01:44.3]} 12. Nfg5 {[%clk 0:01:53.4]} 12... Nxe4 {[%clk
0:01:38.2]} 13. Nxe4 {[%clk 0:01:49.9]} 13... Nf6 {[%clk 0:01:27.7]} 14. Ng5
{[%clk 0:01:39.8]} 14... h6 {[%clk 0:01:22.3]} 15. Nf3 {[%clk 0:01:38.7]} 15...
O-O {[%clk 0:01:11.8]} 16. Ne5 {[%clk 0:01:27.8]} 16... Ba3 {[%clk 0:00:37.2]}
17. Bc3 {[%clk 0:01:11.1]} 17... Nd5 {[%clk 0:00:35.6]} 18. Qe4 {[%clk
0:01:04.2]} 18... f5 {[%clk 0:00:34.5]} 19. Qc4 {[%clk 0:01:04.2]} 19... Nxc3
{[%clk 0:00:24]} 20. Qxc3 {[%clk 0:01:02.5]} 20... Bd6 {[%clk 0:00:23.2]} 21.
Rfe1 {[%clk 0:00:58.1]} 21... Qf6 {[%clk 0:00:20.5]} 22. f4 {[%clk 0:00:50]}
22... Ra3 {[%clk 0:00:18.5]} 23. Qb2 {[%clk 0:00:47.5]} 23... Ra5 {[%clk
0:00:16.9]} 24. Kh1 {[%clk 0:00:34.6]} 24... g5 {[%clk 0:00:15.7]} 25. Bc4
{[%clk 0:00:25]} 25... gxf4 {[%clk 0:00:14.2]} 26. d4 {[%clk 0:00:24.9]} 26...
c6 {[%clk 0:00:12.1]} 27. Qb3 {[%clk 0:00:20.4]} 27... b5 {[%clk 0:00:10.6]} 28.
Be2 {[%clk 0:00:17.6]} 28... Ra6 {[%clk 0:00:10.5]} 29. Bf3 {[%clk 0:00:17.5]}
29... Bxe5 {[%clk 0:00:08.7]} 30. Rxe5 {[%clk 0:00:16.5]} 30... Bd7 {[%clk
0:00:08.6]} 31. Rae1 {[%clk 0:00:15.8]} 31... Ra4 {[%clk 0:00:08.7]} 32. c3
{[%clk 0:00:15.3]} 32... Rc4 {[%clk 0:00:08.4]} 33. h3 {[%clk 0:00:14.3]} 33...
Ra4 {[%clk 0:00:08.2]} 34. R1e2 {[%clk 0:00:13.4]} 34... Rfa8 {[%clk 0:00:07.8]}
35. Qb1 {[%clk 0:00:13.3]} 35... Kg7 {[%clk 0:00:08.1]} 36. Qc1 {[%clk
0:00:13.3]} 36... Rxa2 {[%clk 0:00:07.9]} 37. Rxa2 {[%clk 0:00:12.7]} 37... Rxa2
{[%clk 0:00:07.7]} 38. Kh2 {[%clk 0:00:13]} 38... Qg5 {[%clk 0:00:07.4]} 39. Kh1
{[%clk 0:00:12.9]} 39... Qg3 {[%clk 0:00:07.4]} 40. Re1 {[%clk 0:00:12.8]} 40...
Rf2 {[%clk 0:00:07.4]} 41. Rf1 {[%clk 0:00:11.9]} 41... Rxf1+ {[%clk 0:00:06.6]}
42. Qxf1 {[%clk 0:00:11.9]} 42... Qg6 {[%clk 0:00:06.7]} 43. Qe2 {[%clk
0:00:12.1]} 43... Qf6 {[%clk 0:00:06.9]} 44. c4 {[%clk 0:00:11]} 44... bxc4
{[%clk 0:00:06.4]} 45. Qxc4 {[%clk 0:00:10.8]} 45... Qh4 {[%clk 0:00:05.6]} 46.
Qc3 {[%clk 0:00:10]} 46... Qf6 {[%clk 0:00:05.5]} 47. Qd2 {[%clk 0:00:10.2]}
47... Qe7 {[%clk 0:00:04.5]} 48. Qxf4 {[%clk 0:00:10.2]} 48... Qb4 {[%clk
0:00:04.2]} 49. Qe5+ {[%clk 0:00:10.3]} 49... Kf7 {[%clk 0:00:04.3]} 50. Kh2
{[%clk 0:00:10.8]} 50... Kf8 {[%clk 0:00:03.2]} 51. Bh5 {[%clk 0:00:10.7]} 51...
Ke7 {[%clk 0:00:01.1]} 52. Bf3 {[%clk 0:00:09.8]} 1-0

[Event "*** SCC Grand Prix: Titled Tuesday Blitz"]
[Site "Chess.com"]
[Date "2020.07.21"]
[Round "10"]
[White "aa175"]
[Black "vinniethepooh"]
[Result "1/2-1/2"]
[WhiteElo "2500"]
[BlackElo "2661"]
[TimeControl "180+1"]
[EndTime "12:00:50 PDT"]
[Termination "Game drawn - insufficient material"]

1. d4 {[%clk 0:03:00.9]} 1... Nf6 {[%clk 0:03:00.1]} 2. Nf3 {[%clk 0:02:56.2]}
2... e6 {[%clk 0:03:01]} 3. Bf4 {[%clk 0:02:53.1]} 3... d5 {[%clk 0:03:00.8]} 4.
e3 {[%clk 0:02:53.7]} 4... c5 {[%clk 0:03:00.4]} 5. Nbd2 {[%clk 0:02:54.2]} 5...
Nc6 {[%clk 0:03:01.3]} 6. c3 {[%clk 0:02:55]} 6... cxd4 {[%clk 0:02:58.9]} 7.
exd4 {[%clk 0:02:55.1]} 7... Nh5 {[%clk 0:02:59.5]} 8. Be3 {[%clk 0:02:55.2]}
8... Bd6 {[%clk 0:02:53.5]} 9. Ne5 {[%clk 0:02:53.9]} 9... g6 {[%clk 0:02:51.1]}
10. Bb5 {[%clk 0:02:48.9]} 10... O-O {[%clk 0:02:46.6]} 11. Nxc6 {[%clk
0:02:46.4]} 11... bxc6 {[%clk 0:02:47.5]} 12. Bxc6 {[%clk 0:02:47.3]} 12... Rb8
{[%clk 0:02:44.4]} 13. Qc2 {[%clk 0:02:39.3]} 13... Qb6 {[%clk 0:02:38.7]} 14.
Ba4 {[%clk 0:02:34.8]} 14... Ba6 {[%clk 0:02:30.8]} 15. b4 {[%clk 0:02:24.2]}
15... Rfc8 {[%clk 0:02:24.8]} 16. Qb3 {[%clk 0:02:06.5]} 16... f5 {[%clk
0:02:06.9]} 17. Bd7 {[%clk 0:01:46]} 17... f4 {[%clk 0:01:54.7]} 18. Bxe6+
{[%clk 0:01:40.2]} 18... Kg7 {[%clk 0:01:53.5]} 19. Bxc8 {[%clk 0:01:31.6]}
19... Rxc8 {[%clk 0:01:48.8]} 20. Qxd5 {[%clk 0:01:29.1]} 20... fxe3 {[%clk
0:01:44.1]} 21. Ne4 {[%clk 0:01:21.3]} 21... exf2+ {[%clk 0:01:29.3]} 22. Kxf2
{[%clk 0:01:21]} 22... Nf6 {[%clk 0:01:24.9]} 23. Nxf6 {[%clk 0:01:14.6]} 23...
Kxf6 {[%clk 0:01:20.2]} 24. Rae1 {[%clk 0:01:12.8]} 24... Kg7 {[%clk 0:01:18.6]}
25. Re6 {[%clk 0:01:10.1]} 25... Rf8+ {[%clk 0:01:14.5]} 26. Ke1 {[%clk
0:01:05.3]} 26... Rd8 {[%clk 0:01:10.8]} 27. Kd1 {[%clk 0:00:45.1]} 27... Qc7
{[%clk 0:01:07.4]} 28. Rhe1 {[%clk 0:00:42.6]} 28... Bc4 {[%clk 0:00:57.1]} 29.
Qxd6 {[%clk 0:00:17.2]} 29... Rxd6 {[%clk 0:00:54.3]} 30. Re7+ {[%clk
0:00:17.1]} 30... Qxe7 {[%clk 0:00:54.7]} 31. Rxe7+ {[%clk 0:00:18]} 31... Kf6
{[%clk 0:00:55.6]} 32. Rxh7 {[%clk 0:00:15.8]} 32... Ra6 {[%clk 0:00:53.4]} 33.
Rc7 {[%clk 0:00:09.9]} 33... Be6 {[%clk 0:00:46.2]} 34. c4 {[%clk 0:00:05.2]}
34... Rxa2 {[%clk 0:00:41.9]} 35. d5 {[%clk 0:00:05.5]} 35... Bg4+ {[%clk
0:00:40.8]} 36. Ke1 {[%clk 0:00:05.5]} 36... Ke5 {[%clk 0:00:41.3]} 37. h3
{[%clk 0:00:03.6]} 37... Bf5 {[%clk 0:00:41.5]} 38. Re7+ {[%clk 0:00:02.5]}
38... Kd4 {[%clk 0:00:41.4]} 39. d6 {[%clk 0:00:02.9]} 39... Kxc4 {[%clk
0:00:37.2]} 40. d7 {[%clk 0:00:02.8]} 40... Bxd7 {[%clk 0:00:33.3]} 41. Rxd7
{[%clk 0:00:03.7]} 41... Kxb4 {[%clk 0:00:33.9]} 42. Rd6 {[%clk 0:00:03.2]}
42... g5 {[%clk 0:00:30]} 43. Rd4+ {[%clk 0:00:02.5]} 43... Kc3 {[%clk
0:00:28.1]} 44. Rg4 {[%clk 0:00:02.9]} 44... Ra5 {[%clk 0:00:27.2]} 45. Kf2
{[%clk 0:00:02.1]} 45... Rf5+ {[%clk 0:00:24.5]} 46. Kg3 {[%clk 0:00:02.2]}
46... a5 {[%clk 0:00:25.4]} 47. Ra4 {[%clk 0:00:02.4]} 47... Kb3 {[%clk
0:00:21.2]} 48. Ra1 {[%clk 0:00:02]} 48... a4 {[%clk 0:00:21.1]} 49. Kg4 {[%clk
0:00:02.5]} 49... Rc5 {[%clk 0:00:17.9]} 50. g3 {[%clk 0:00:02.8]} 50... a3
{[%clk 0:00:15.7]} 51. h4 {[%clk 0:00:02.6]} 51... gxh4 {[%clk 0:00:16.6]} 52.
gxh4 {[%clk 0:00:02.7]} 52... Kb2 {[%clk 0:00:14]} 53. Rxa3 {[%clk 0:00:01.1]}
53... Kxa3 {[%clk 0:00:14.9]} 54. h5 {[%clk 0:00:01.8]} 54... Rc2 {[%clk
0:00:13]} 55. h6 {[%clk 0:00:02.1]} 55... Rg2+ {[%clk 0:00:13.3]} 56. Kf5 {[%clk
0:00:02.4]} 56... Kb4 {[%clk 0:00:12.7]} 57. h7 {[%clk 0:00:02.7]} 57... Rh2
{[%clk 0:00:12.3]} 58. Kg6 {[%clk 0:00:03.2]} 58... Kc5 {[%clk 0:00:11.1]} 59.
Kg7 {[%clk 0:00:03.4]} 59... Kd6 {[%clk 0:00:11.2]} 60. h8=Q {[%clk 0:00:03.2]}
60... Rxh8 {[%clk 0:00:10.1]} 61. Kxh8 {[%clk 0:00:04.1]} 1/2-1/2

[Event "*** SCC Grand Prix: Titled Tuesday Blitz"]
[Site "Chess.com"]
[Date "2020.07.21"]
[Round "10"]
[White "Kobalia"]
[Black "AlexOstrovskiy"]
[Result "1-0"]
[WhiteElo "2765"]
[BlackElo "2637"]
[TimeControl "180+1"]
[EndTime "12:00:52 PDT"]
[Termination "Kobalia won by checkmate"]

1. e4 {[%clk 0:03:00.9]} 1... c6 {[%clk 0:02:54.5]} 2. d4 {[%clk 0:03:00]} 2...
d5 {[%clk 0:02:50]} 3. exd5 {[%clk 0:03:00.4]} 3... cxd5 {[%clk 0:02:48.6]} 4.
Bd3 {[%clk 0:03:01.3]} 4... Nc6 {[%clk 0:02:48.9]} 5. c3 {[%clk 0:03:00.1]} 5...
Qc7 {[%clk 0:02:49.2]} 6. Ne2 {[%clk 0:02:59.6]} 6... Bg4 {[%clk 0:02:49.7]} 7.
O-O {[%clk 0:02:59.4]} 7... e6 {[%clk 0:02:49]} 8. Qe1 {[%clk 0:02:59.7]} 8...
Be7 {[%clk 0:02:49.5]} 9. Bf4 {[%clk 0:02:43.6]} 9... Qb6 {[%clk 0:02:46.3]} 10.
Nd2 {[%clk 0:02:39.7]} 10... Bh5 {[%clk 0:02:38.7]} 11. Nb3 {[%clk 0:02:24]}
11... Bg6 {[%clk 0:02:35.4]} 12. Qd1 {[%clk 0:02:22.5]} 12... Nf6 {[%clk
0:02:33.1]} 13. Re1 {[%clk 0:02:19.4]} 13... O-O {[%clk 0:02:26.8]} 14. Ng3
{[%clk 0:02:18.9]} 14... Bxd3 {[%clk 0:02:19.2]} 15. Qxd3 {[%clk 0:02:18.1]}
15... a5 {[%clk 0:02:15.1]} 16. Nd2 {[%clk 0:02:13.8]} 16... a4 {[%clk
0:02:07.3]} 17. a3 {[%clk 0:02:06.9]} 17... Ra5 {[%clk 0:01:53.5]} 18. Rab1
{[%clk 0:01:59]} 18... Rb5 {[%clk 0:01:36.3]} 19. Qc2 {[%clk 0:01:58.4]} 19...
Qa6 {[%clk 0:01:36.1]} 20. Nf3 {[%clk 0:01:54.3]} 20... Rc8 {[%clk 0:01:35.1]}
21. Rbd1 {[%clk 0:01:47.5]} 21... Qb6 {[%clk 0:01:20.5]} 22. Bc1 {[%clk
0:01:39.5]} 22... Na5 {[%clk 0:01:14.7]} 23. Ne5 {[%clk 0:01:16.3]} 23... Nb3
{[%clk 0:01:14.5]} 24. Bg5 {[%clk 0:01:10.8]} 24... Nxd4 {[%clk 0:01:07.6]} 25.
Qxa4 {[%clk 0:01:03.3]} 25... Nc6 {[%clk 0:00:14.5]} 26. Bxf6 {[%clk 0:01:02.3]}
26... Bxf6 {[%clk 0:00:15.2]} 27. Nd7 {[%clk 0:01:01.4]} 27... Qa5 {[%clk
0:00:14.3]} 28. Nxf6+ {[%clk 0:00:59.7]} 28... gxf6 {[%clk 0:00:15.2]} 29. Qg4+
{[%clk 0:00:55.1]} 29... Kf8 {[%clk 0:00:06.3]} 30. Nh5 {[%clk 0:00:53.8]} 30...
f5 {[%clk 0:00:05.3]} 31. Qg7+ {[%clk 0:00:52.1]} 31... Ke7 {[%clk 0:00:03.7]}
32. Qf6+ {[%clk 0:00:51.6]} 32... Kd6 {[%clk 0:00:01.7]} 33. Qxf7 {[%clk
0:00:49.7]} 33... Nd8 {[%clk 0:00:02.3]} 34. Qf8+ {[%clk 0:00:46.6]} 34... Kc7
{[%clk 0:00:02.3]} 35. Nf6 {[%clk 0:00:45.8]} 35... Kb8 {[%clk 0:00:01.8]} 36.
Nd7+ {[%clk 0:00:42.7]} 36... Ka7 {[%clk 0:00:01.7]} 37. Rxe6 {[%clk 0:00:41]}
37... Nxe6 {[%clk 0:00:01.5]} 38. Qxc8 {[%clk 0:00:40.5]} 38... Rxb2 {[%clk
0:00:02.1]} 39. Qb8+ {[%clk 0:00:36.1]} 39... Ka6 {[%clk 0:00:02.6]} 40. Qd6+
{[%clk 0:00:35.1]} 40... Kb5 {[%clk 0:00:02.3]} 41. Qxe6 {[%clk 0:00:31.5]}
41... Qxc3 {[%clk 0:00:03.2]} 42. Qb6+ {[%clk 0:00:27.3]} 42... Ka4 {[%clk
0:00:04.1]} 43. Qa7+ {[%clk 0:00:22.7]} 43... Kb3 {[%clk 0:00:04.2]} 44. Qxb7+
{[%clk 0:00:20.8]} 44... Ka2 {[%clk 0:00:04.5]} 45. Qxd5+ {[%clk 0:00:20.6]}
45... Kxa3 {[%clk 0:00:04.1]} 46. Ra1+ {[%clk 0:00:18.8]} 46... Kb4 {[%clk
0:00:03.2]} 47. Qb7+ {[%clk 0:00:16.9]} 47... Kc4 {[%clk 0:00:03.1]} 48. Qc6+
{[%clk 0:00:15.3]} 48... Kb3 {[%clk 0:00:03.3]} 49. Ra3+ {[%clk 0:00:13.1]}
49... Kxa3 {[%clk 0:00:02.9]} 50. Qxc3+ {[%clk 0:00:12.9]} 50... Ka2 {[%clk
0:00:03.8]} 51. Qxb2+ {[%clk 0:00:12.3]} 51... Kxb2 {[%clk 0:00:04.3]} 52. Nf6
{[%clk 0:00:12.4]} 52... f4 {[%clk 0:00:05.2]} 53. Nxh7 {[%clk 0:00:12.2]} 53...
Kc2 {[%clk 0:00:06.1]} 54. h4 {[%clk 0:00:12.3]} 54... Kd3 {[%clk 0:00:07]} 55.
h5 {[%clk 0:00:12.6]} 55... Ke4 {[%clk 0:00:07.9]} 56. Ng5+ {[%clk 0:00:12.6]}
56... Kf5 {[%clk 0:00:08.8]} 57. h6 {[%clk 0:00:12.5]} 57... Kg6 {[%clk
0:00:09.7]} 58. h7 {[%clk 0:00:12.4]} 58... Kg7 {[%clk 0:00:10.6]} 59. Kh2
{[%clk 0:00:12.2]} 59... f3 {[%clk 0:00:11.5]} 60. gxf3 {[%clk 0:00:11.8]} 60...
Kh8 {[%clk 0:00:12.4]} 61. f4 {[%clk 0:00:11.8]} 61... Kg7 {[%clk 0:00:13.3]}
62. f5 {[%clk 0:00:11.4]} 62... Kh8 {[%clk 0:00:11.6]} 63. Kg3 {[%clk
0:00:11.4]} 63... Kg7 {[%clk 0:00:12.5]} 64. f6+ {[%clk 0:00:11.4]} 64... Kg6
{[%clk 0:00:11.8]} 65. f7 {[%clk 0:00:10.2]} 65... Kf5 {[%clk 0:00:12.7]} 66.
f8=Q+ {[%clk 0:00:10.1]} 66... Kg6 {[%clk 0:00:13.6]} 67. Qg8+ {[%clk
0:00:09.2]} 67... Kh5 {[%clk 0:00:14.5]} 68. h8=Q# {[%clk 0:00:09.1]} 1-0